[Event "*** Titled Tuesday 3|2 Blitz"]
[Site "Chess.com"]
[Date "2015.11.03"]
[Round "4"]
[White "igorkovalenko"]
[Black "Frolyanov_D"]
[Result "1-0"]
[WhiteElo "2508"]
[BlackElo "2349"]
[TimeControl "180+2"]
[EndTime "11:47:30 PST"]
[Termination "igorkovalenko won by resignation"]

1. d4 {[%clk 0:02:57]} 1... Nf6 {[%clk 0:03:00.3]} 2. Nf3 {[%clk 0:02:58.9]}
2... g6 {[%clk 0:03:00.3]} 3. g3 {[%clk 0:02:59.9]} 3... Bg7 {[%clk 0:03:01.3]}
4. Bg2 {[%clk 0:03:01.8]} 4... O-O {[%clk 0:03:01.6]} 5. O-O {[%clk 0:03:03.7]}
5... d5 {[%clk 0:03:00.3]} 6. c3 {[%clk 0:03:05]} 6... Nbd7 {[%clk 0:03:00.8]}
7. a4 {[%clk 0:03:05.5]} 7... c5 {[%clk 0:02:55.7]} 8. a5 {[%clk 0:03:06.5]}
8... e6 {[%clk 0:02:52.9]} 9. Bf4 {[%clk 0:03:06.4]} 9... b6 {[%clk 0:02:50.3]}
10. axb6 {[%clk 0:03:07.1]} 10... Qxb6 {[%clk 0:02:50.6]} 11. Ra2 {[%clk
0:03:08]} 11... c4 {[%clk 0:02:43.7]} 12. Nbd2 {[%clk 0:03:08.3]} 12... Nh5
{[%clk 0:02:41.4]} 13. Bg5 {[%clk 0:03:02.3]} 13... Qd6 {[%clk 0:02:16.6]} 14.
e4 {[%clk 0:03:01]} 14... f6 {[%clk 0:02:03.8]} 15. Be3 {[%clk 0:03:00.1]} 15...
Bb7 {[%clk 0:02:04]} 16. exd5 {[%clk 0:02:55.7]} 16... exd5 {[%clk 0:02:04.1]}
17. Qa4 {[%clk 0:02:48.4]} 17... f5 {[%clk 0:01:59.7]} 18. Qa3 {[%clk 0:02:13]}
18... Qc7 {[%clk 0:01:48.2]} 19. Bg5 {[%clk 0:02:11]} 19... Rae8 {[%clk
0:01:30.1]} 20. Be7 {[%clk 0:02:10.9]} 20... Rf7 {[%clk 0:01:29]} 21. Bd6 {[%clk
0:02:10.1]} 21... Qc6 {[%clk 0:01:26.5]} 22. Bb4 {[%clk 0:02:08.8]} 22... f4
{[%clk 0:01:15.9]} 23. g4 {[%clk 0:01:59.5]} 23... Nhf6 {[%clk 0:01:15.6]} 24.
Ng5 {[%clk 0:02:00.6]} 24... a5 {[%clk 0:00:55]} 25. Bd6 {[%clk 0:01:46.1]}
25... Rff8 {[%clk 0:00:31.8]} 26. h3 {[%clk 0:01:38.8]} 26... h6 {[%clk
0:00:29.7]} 27. Ngf3 {[%clk 0:01:37.1]} 27... Rf7 {[%clk 0:00:23.9]} 28. Ne5
{[%clk 0:01:36]} 28... Nxe5 {[%clk 0:00:24.7]} 29. Bxe5 {[%clk 0:01:37.1]} 29...
Ne4 {[%clk 0:00:20.2]} 30. Nf3 {[%clk 0:01:30.5]} 30... Ng5 {[%clk 0:00:19]} 31.
Bxg7 {[%clk 0:01:28.1]} 31... Kxg7 {[%clk 0:00:20.9]} 32. Qa4 {[%clk 0:01:28.7]}
32... Qxa4 {[%clk 0:00:18]} 33. Rxa4 {[%clk 0:01:30]} 33... Nxf3+ {[%clk
0:00:18.9]} 34. Bxf3 {[%clk 0:01:31.5]} 34... Bc6 {[%clk 0:00:19.5]} 35. Rxa5
{[%clk 0:01:32.3]} 35... Rb8 {[%clk 0:00:20.1]} 36. Rc5 {[%clk 0:01:26.4]} 36...
Rb6 {[%clk 0:00:20.5]} 37. Re1 {[%clk 0:01:24.9]} 37... Rd7 {[%clk 0:00:20.3]}
38. Re6 {[%clk 0:01:24.1]} 38... Rc7 {[%clk 0:00:14.4]} 39. Bxd5 {[%clk
0:01:23.7]} 1-0

[Event "*** Titled Tuesday 3|2 Blitz"]
[Site "Chess.com"]
[Date "2015.11.03"]
[Round "4"]
[White "Rickstereo"]
[Black "Rating-Schmating"]
[Result "1-0"]
[WhiteElo "2094"]
[BlackElo "1943"]
[TimeControl "180+2"]
[EndTime "11:47:37 PST"]
[Termination "Rickstereo won by checkmate"]

1. c4 {[%clk 0:03:01.9]} 1... e6 {[%clk 0:03:01]} 2. g3 {[%clk 0:03:02.7]} 2...
Nf6 {[%clk 0:03:02.1]} 3. Bg2 {[%clk 0:03:04.1]} 3... c5 {[%clk 0:03:03.2]} 4.
Nf3 {[%clk 0:03:04]} 4... Nc6 {[%clk 0:03:03.7]} 5. O-O {[%clk 0:03:04.3]} 5...
d6 {[%clk 0:03:05]} 6. d4 {[%clk 0:02:59.4]} 6... cxd4 {[%clk 0:03:04.8]} 7.
Nxd4 {[%clk 0:03:00.6]} 7... Bd7 {[%clk 0:03:05.6]} 8. Nb5 {[%clk 0:02:59.9]}
8... Qb8 {[%clk 0:02:58]} 9. Bf4 {[%clk 0:02:59.4]} 9... e5 {[%clk 0:02:56.3]}
10. Bg5 {[%clk 0:03:00.6]} 10... a6 {[%clk 0:02:54]} 11. Bxf6 {[%clk 0:02:58]}
11... gxf6 {[%clk 0:02:52.8]} 12. N5c3 {[%clk 0:02:58.7]} 12... Be6 {[%clk
0:02:48.2]} 13. Nd5 {[%clk 0:02:58.9]} 13... Bxd5 {[%clk 0:02:45.2]} 14. Bxd5
{[%clk 0:02:53]} 14... Be7 {[%clk 0:02:43.1]} 15. Nc3 {[%clk 0:02:53.8]} 15...
Qc7 {[%clk 0:02:43]} 16. e3 {[%clk 0:02:54.5]} 16... f5 {[%clk 0:02:34]} 17. Qh5
{[%clk 0:02:41.7]} 17... O-O-O {[%clk 0:02:27]} 18. Qxf5+ {[%clk 0:02:39.5]}
18... Kb8 {[%clk 0:02:27]} 19. b4 {[%clk 0:02:29.5]} 19... Nxb4 {[%clk
0:02:18.7]} 20. Rab1 {[%clk 0:02:30.4]} 20... Nc6 {[%clk 0:02:18.9]} 21. Bxc6
{[%clk 0:02:19.1]} 21... Qxc6 {[%clk 0:02:18.2]} 22. Nd5 {[%clk 0:02:20.7]}
22... Rd7 {[%clk 0:02:02.3]} 23. Rb6 {[%clk 0:02:17.6]} 23... Qc8 {[%clk
0:01:55.7]} 24. Rfb1 {[%clk 0:02:17.1]} 24... Rhd8 {[%clk 0:01:54.4]} 25. Rxa6
{[%clk 0:01:50.2]} 25... Qxc4 {[%clk 0:01:49]} 26. Ra8+ {[%clk 0:01:51.4]} 26...
Kxa8 {[%clk 0:01:43.7]} 27. Nb6+ {[%clk 0:01:52.5]} 27... Kb8 {[%clk 0:01:44.6]}
28. Nxc4 {[%clk 0:01:54.1]} 28... d5 {[%clk 0:01:45.9]} 29. Nxe5 {[%clk
0:01:55.1]} 29... Rc7 {[%clk 0:01:47.1]} 30. Kg2 {[%clk 0:01:37.9]} 30... d4
{[%clk 0:01:45]} 31. exd4 {[%clk 0:01:37.5]} 31... Rxd4 {[%clk 0:01:45.6]} 32.
Qf3 {[%clk 0:01:29.5]} 32... Rd6 {[%clk 0:01:41.6]} 33. Nxf7 {[%clk 0:01:18.5]}
33... Rf6 {[%clk 0:01:42.2]} 34. Qd5 {[%clk 0:01:19.2]} 34... Ka7 {[%clk
0:01:35.2]} 35. Nd8 {[%clk 0:01:18.1]} 35... b6 {[%clk 0:01:27.1]} 36. Ne6
{[%clk 0:01:06.6]} 36... Rb7 {[%clk 0:01:23.1]} 37. a4 {[%clk 0:01:02.4]} 37...
Ba3 {[%clk 0:01:22.6]} 38. a5 {[%clk 0:01:02.5]} 38... Rxe6 {[%clk 0:01:16.4]}
39. Qxe6 {[%clk 0:00:59.9]} 39... bxa5 {[%clk 0:01:12.9]} 40. Qe3+ {[%clk
0:01:00.8]} 40... Kb8 {[%clk 0:01:11.2]} 41. Rxb7+ {[%clk 0:01:01.6]} 41... Kxb7
{[%clk 0:01:12.5]} 42. Qxa3 {[%clk 0:01:02.6]} 42... Kb6 {[%clk 0:01:13.8]} 43.
f4 {[%clk 0:01:02.3]} 43... Kb5 {[%clk 0:01:15.7]} 44. f5 {[%clk 0:01:03.5]}
44... h5 {[%clk 0:01:17.6]} 45. f6 {[%clk 0:01:04.6]} 45... h4 {[%clk
0:01:19.5]} 46. f7 {[%clk 0:01:05.6]} 46... hxg3 {[%clk 0:01:21.4]} 47. hxg3
{[%clk 0:01:06.3]} 47... Kc4 {[%clk 0:01:23.3]} 48. f8=Q {[%clk 0:01:05.8]}
48... a4 {[%clk 0:01:25.2]} 49. Qf4+ {[%clk 0:01:06.6]} 49... Kd5 {[%clk
0:01:27.1]} 50. Qd3+ {[%clk 0:01:07]} 50... Ke6 {[%clk 0:01:29]} 51. Qfe4+
{[%clk 0:01:07.4]} 51... Kf7 {[%clk 0:01:29.8]} 52. Qdf3+ {[%clk 0:01:08.5]}
52... Kg8 {[%clk 0:01:31.7]} 53. Qeg4+ {[%clk 0:01:09.4]} 53... Kh7 {[%clk
0:01:33.6]} 54. Qf7+ {[%clk 0:01:10]} 54... Kh6 {[%clk 0:01:32.9]} 55. Qfg6#
{[%clk 0:01:10.9]} 1-0

[Event "*** Titled Tuesday 3|2 Blitz"]
[Site "Chess.com"]
[Date "2015.11.03"]
[Round "4"]
[White "SenseiJulio"]
[Black "jcibarra"]
[Result "0-1"]
[WhiteElo "2618"]
[BlackElo "2537"]
[TimeControl "180+2"]
[EndTime "11:47:54 PST"]
[Termination "jcibarra won by resignation"]

1. d4 {[%clk 0:03:01.9]} 1... Nf6 {[%clk 0:03:00.4]} 2. c4 {[%clk 0:03:02.5]}
2... d6 {[%clk 0:03:01.7]} 3. Nf3 {[%clk 0:03:00.1]} 3... g6 {[%clk 0:03:02.2]}
4. g3 {[%clk 0:02:59.8]} 4... Bg7 {[%clk 0:03:02.6]} 5. Bg2 {[%clk 0:03:01.7]}
5... O-O {[%clk 0:03:03.9]} 6. O-O {[%clk 0:03:03.3]} 6... Nc6 {[%clk
0:03:05.4]} 7. Nc3 {[%clk 0:03:02.8]} 7... Bf5 {[%clk 0:03:06]} 8. Ne1 {[%clk
0:02:49.4]} 8... Na5 {[%clk 0:03:06.3]} 9. e4 {[%clk 0:02:43.8]} 9... Bg4 {[%clk
0:03:07.3]} 10. f3 {[%clk 0:02:36.3]} 10... Bd7 {[%clk 0:03:08.1]} 11. b3 {[%clk
0:02:35.3]} 11... c5 {[%clk 0:03:09]} 12. Nc2 {[%clk 0:02:36.3]} 12... Nc6
{[%clk 0:03:09.6]} 13. d5 {[%clk 0:02:26.8]} 13... Nd4 {[%clk 0:03:09.6]} 14.
Be3 {[%clk 0:02:22]} 14... Qa5 {[%clk 0:03:05.7]} 15. Nxd4 {[%clk 0:02:03.5]}
15... Qxc3 {[%clk 0:03:04.7]} 16. Nc2 {[%clk 0:02:04.4]} 16... b5 {[%clk
0:02:59.3]} 17. Bd2 {[%clk 0:01:51.1]} 17... Qb2 {[%clk 0:02:45.3]} 18. Rb1
{[%clk 0:01:24.1]} 18... Qxa2 {[%clk 0:02:42.4]} 19. Ne3 {[%clk 0:01:04.1]}
19... Rfb8 {[%clk 0:02:33.9]} 20. Ra1 {[%clk 0:00:37.5]} 20... Qb2 {[%clk
0:02:34.1]} 21. Qe2 {[%clk 0:00:22.9]} 21... bxc4 {[%clk 0:02:14.1]} 22. bxc4
{[%clk 0:00:23.2]} 22... a5 {[%clk 0:02:11]} 23. f4 {[%clk 0:00:18.8]} 23... Ng4
{[%clk 0:01:56.5]} 24. Nxg4 {[%clk 0:00:11.8]} 24... Bxg4 {[%clk 0:01:56.1]} 25.
Qxg4 {[%clk 0:00:12.9]} 25... Qxd2 {[%clk 0:01:50.5]} 26. e5 {[%clk 0:00:14.2]}
26... a4 {[%clk 0:01:45.8]} 27. Rae1 {[%clk 0:00:08.7]} 27... Rb2 {[%clk
0:01:43.7]} 28. Qf3 {[%clk 0:00:08.8]} 28... a3 {[%clk 0:01:31.3]} 29. f5 {[%clk
0:00:09.8]} 29... Bxe5 {[%clk 0:01:24.1]} 30. fxg6 {[%clk 0:00:08.7]} 30... fxg6
{[%clk 0:01:23.5]} 31. Kh1 {[%clk 0:00:06]} 31... a2 {[%clk 0:01:16.6]} 32. Qf7+
{[%clk 0:00:06.7]} 32... Kh8 {[%clk 0:01:17.6]} 33. Rg1 {[%clk 0:00:08.3]} 33...
Bf6 {[%clk 0:01:01.7]} 34. Rxe7 {[%clk 0:00:07.3]} 34... Bxe7 {[%clk 0:01:00.3]}
35. Qxe7 {[%clk 0:00:09.2]} 35... Qxg2+ {[%clk 0:00:49.5]} 36. Rxg2 {[%clk
0:00:09.5]} 36... Rb1+ {[%clk 0:00:51.1]} 37. Rg1 {[%clk 0:00:10.4]} 37... Rxg1+
{[%clk 0:00:53]} 38. Kxg1 {[%clk 0:00:11.6]} 38... a1=Q+ {[%clk 0:00:54.9]} 0-1

[Event "*** Titled Tuesday 3|2 Blitz"]
[Site "Chess.com"]
[Date "2015.11.03"]
[Round "4"]
[White "spectralsoul"]
[Black "oggy1984"]
[Result "1/2-1/2"]
[WhiteElo "2476"]
[BlackElo "2275"]
[TimeControl "180+2"]
[EndTime "11:48:04 PST"]
[Termination "Game drawn by repetition"]

1. g3 {[%clk 0:03:01.9]} 1... Nf6 {[%clk 0:02:55.8]} 2. Bg2 {[%clk 0:03:02.9]}
2... d5 {[%clk 0:02:50.3]} 3. c4 {[%clk 0:03:03.2]} 3... c6 {[%clk 0:02:47.5]}
4. Qc2 {[%clk 0:03:03.1]} 4... e6 {[%clk 0:02:46.3]} 5. Nf3 {[%clk 0:03:02.6]}
5... Nbd7 {[%clk 0:02:46.7]} 6. O-O {[%clk 0:03:03.1]} 6... Be7 {[%clk
0:02:48.6]} 7. b3 {[%clk 0:03:01.5]} 7... O-O {[%clk 0:02:48.1]} 8. Bb2 {[%clk
0:03:02.9]} 8... b6 {[%clk 0:02:45.6]} 9. d3 {[%clk 0:03:01.4]} 9... Bb7 {[%clk
0:02:45.4]} 10. Nbd2 {[%clk 0:03:02.9]} 10... Rc8 {[%clk 0:02:28.9]} 11. e4
{[%clk 0:03:00.5]} 11... dxe4 {[%clk 0:02:21.3]} 12. dxe4 {[%clk 0:03:01.7]}
12... c5 {[%clk 0:02:17.3]} 13. e5 {[%clk 0:03:03]} 13... Bxf3 {[%clk
0:02:13.7]} 14. Nxf3 {[%clk 0:03:02.9]} 14... Ng4 {[%clk 0:02:12.3]} 15. Qe4
{[%clk 0:02:56]} 15... Nh6 {[%clk 0:02:06.7]} 16. g4 {[%clk 0:02:45]} 16... Qc7
{[%clk 0:02:01.2]} 17. Bc1 {[%clk 0:02:44.8]} 17... Rfd8 {[%clk 0:01:58.2]} 18.
Re1 {[%clk 0:02:36.7]} 18... Nf8 {[%clk 0:01:57.3]} 19. h4 {[%clk 0:02:09.3]}
19... Rd7 {[%clk 0:01:47.5]} 20. Bxh6 {[%clk 0:01:57.2]} 20... gxh6 {[%clk
0:01:46.7]} 21. Qf4 {[%clk 0:01:55.7]} 21... Kg7 {[%clk 0:01:43.2]} 22. g5
{[%clk 0:01:57.2]} 22... hxg5 {[%clk 0:01:32.9]} 23. Nxg5 {[%clk 0:01:56.9]}
23... Bd8 {[%clk 0:01:21.6]} 24. Qg4 {[%clk 0:01:47.4]} 24... Kh8 {[%clk
0:00:58.1]} 25. Rad1 {[%clk 0:01:32.8]} 25... h6 {[%clk 0:00:47.9]} 26. Rxd7
{[%clk 0:01:24.3]} 26... Qxd7 {[%clk 0:00:48.3]} 27. Rd1 {[%clk 0:01:20.4]}
27... Qe7 {[%clk 0:00:48.2]} 28. Qh5 {[%clk 0:01:15.3]} 28... Kg7 {[%clk
0:00:46.8]} 29. Nf3 {[%clk 0:01:10.7]} 29... Rc7 {[%clk 0:00:41.9]} 30. Qg4+
{[%clk 0:01:10.8]} 30... Kh8 {[%clk 0:00:41.5]} 31. Qf4 {[%clk 0:01:10.4]} 31...
Kg7 {[%clk 0:00:39.6]} 32. Qg4+ {[%clk 0:00:55.6]} 32... Kh8 {[%clk 0:00:39.2]}
33. Qh5 {[%clk 0:00:34.9]} 33... Kg7 {[%clk 0:00:36.6]} 34. Qg4+ {[%clk
0:00:27.1]} 34... Kh8 {[%clk 0:00:33.9]} 35. Qf4 {[%clk 0:00:27.8]} 35... Kg7
{[%clk 0:00:31.9]} 36. Qg4+ {[%clk 0:00:20.2]} 36... Kh8 {[%clk 0:00:30.4]}
1/2-1/2

[Event "*** Titled Tuesday 3|2 Blitz"]
[Site "Chess.com"]
[Date "2015.11.03"]
[Round "4"]
[White "SerGo055"]
[Black "DeviatkinAndrey"]
[Result "1-0"]
[WhiteElo "2387"]
[BlackElo "2474"]
[TimeControl "180+2"]
[EndTime "11:48:07 PST"]
[Termination "SerGo055 won by resignation"]

1. d4 {[%clk 0:02:58.9]} 1... d5 {[%clk 0:02:59.5]} 2. Nf3 {[%clk 0:02:59.9]}
2... Nf6 {[%clk 0:02:59.3]} 3. c4 {[%clk 0:03:01.1]} 3... c6 {[%clk 0:03:00.5]}
4. Nc3 {[%clk 0:03:02]} 4... dxc4 {[%clk 0:03:01.6]} 5. a4 {[%clk 0:03:02]} 5...
Bf5 {[%clk 0:03:02.7]} 6. e3 {[%clk 0:02:58.4]} 6... e6 {[%clk 0:03:03.4]} 7.
Bxc4 {[%clk 0:02:59.7]} 7... Bb4 {[%clk 0:03:04.4]} 8. O-O {[%clk 0:03:01.2]}
8... O-O {[%clk 0:03:05.5]} 9. Qb3 {[%clk 0:03:02.1]} 9... Qb6 {[%clk
0:03:05.6]} 10. Bd2 {[%clk 0:03:01.1]} 10... Nbd7 {[%clk 0:03:01.8]} 11. Ne2
{[%clk 0:02:59.4]} 11... Bxd2 {[%clk 0:02:58.1]} 12. Nxd2 {[%clk 0:03:00.1]}
12... a5 {[%clk 0:02:52.6]} 13. Ng3 {[%clk 0:02:47]} 13... Bg6 {[%clk 0:02:50]}
14. Qxb6 {[%clk 0:02:45]} 14... Nxb6 {[%clk 0:02:50.5]} 15. b3 {[%clk
0:02:46.6]} 15... Nfd5 {[%clk 0:02:23.7]} 16. Nf3 {[%clk 0:02:38.5]} 16... Nd7
{[%clk 0:02:08.5]} 17. Bxd5 {[%clk 0:02:29]} 17... exd5 {[%clk 0:02:08.7]} 18.
Rfc1 {[%clk 0:02:26]} 18... Rfe8 {[%clk 0:01:34.6]} 19. Ne2 {[%clk 0:02:13.8]}
19... Bh5 {[%clk 0:01:33.9]} 20. Nf4 {[%clk 0:02:14.2]} 20... Bxf3 {[%clk
0:01:34.6]} 21. gxf3 {[%clk 0:02:15.3]} 21... g5 {[%clk 0:01:25.8]} 22. Nd3
{[%clk 0:02:15.3]} 22... f6 {[%clk 0:01:27.2]} 23. f4 {[%clk 0:02:10.9]} 23...
h6 {[%clk 0:01:24.7]} 24. Kg2 {[%clk 0:02:09.9]} 24... Kf7 {[%clk 0:01:25.2]}
25. Kf3 {[%clk 0:02:10.3]} 25... Rg8 {[%clk 0:01:19.8]} 26. Rg1 {[%clk
0:02:11.2]} 26... Rg7 {[%clk 0:01:15.5]} 27. h4 {[%clk 0:02:08.9]} 27... gxf4
{[%clk 0:00:55.1]} 28. Rxg7+ {[%clk 0:02:08.9]} 28... Kxg7 {[%clk 0:00:55.8]}
29. Nxf4 {[%clk 0:02:09.5]} 29... Kf7 {[%clk 0:00:56.9]} 30. Rg1 {[%clk
0:02:07.4]} 30... Nf8 {[%clk 0:00:51.6]} 31. h5 {[%clk 0:01:57.6]} 31... Re8
{[%clk 0:00:40.9]} 32. Rg3 {[%clk 0:01:10.9]} 32... Re7 {[%clk 0:00:30.6]} 33.
Ng6 {[%clk 0:01:09.1]} 33... Re8 {[%clk 0:00:22.4]} 34. Nxf8 {[%clk 0:01:09.9]}
34... Rxf8 {[%clk 0:00:23]} 35. Rg6 {[%clk 0:01:11.3]} 35... Rb8 {[%clk
0:00:21.6]} 36. Rxh6 {[%clk 0:01:12]} 36... Kg7 {[%clk 0:00:23]} 37. Rg6+ {[%clk
0:01:12.9]} 37... Kf7 {[%clk 0:00:24.5]} 38. Rg1 {[%clk 0:01:10.1]} 38... b5
{[%clk 0:00:25.4]} 39. Rc1 {[%clk 0:01:07.5]} 39... bxa4 {[%clk 0:00:25.4]} 40.
bxa4 {[%clk 0:01:08.4]} 40... Rb6 {[%clk 0:00:22.3]} 41. Rc5 {[%clk 0:01:08.9]}
41... Ke6 {[%clk 0:00:22.1]} 42. Rxa5 {[%clk 0:01:09.3]} 42... Kf5 {[%clk
0:00:23.5]} 43. Ra8 {[%clk 0:01:08.7]} 43... Rb2 {[%clk 0:00:22.8]} 44. a5
{[%clk 0:01:07.9]} 1-0

[Event "*** Titled Tuesday 3|2 Blitz"]
[Site "Chess.com"]
[Date "2015.11.03"]
[Round "4"]
[White "E-Shaposhnikov"]
[Black "Baggio95"]
[Result "1-0"]
[WhiteElo "2564"]
[BlackElo "2386"]
[TimeControl "180+2"]
[EndTime "11:48:11 PST"]
[Termination "E-Shaposhnikov won by resignation"]

1. e4 {[%clk 0:02:58.9]} 1... e5 {[%clk 0:02:59.6]} 2. Nf3 {[%clk 0:02:55.5]}
2... Nc6 {[%clk 0:02:59.9]} 3. Bc4 {[%clk 0:02:56]} 3... Nf6 {[%clk 0:02:59.7]}
4. d3 {[%clk 0:02:56.5]} 4... Be7 {[%clk 0:02:59.7]} 5. O-O {[%clk 0:02:55.5]}
5... O-O {[%clk 0:03:00.2]} 6. Re1 {[%clk 0:02:57]} 6... d6 {[%clk 0:03:00.2]}
7. a4 {[%clk 0:02:58]} 7... Be6 {[%clk 0:02:58.3]} 8. Nc3 {[%clk 0:02:58.3]}
8... Qd7 {[%clk 0:02:52.4]} 9. Nd5 {[%clk 0:02:54]} 9... Nd8 {[%clk 0:02:40]}
10. Nxe7+ {[%clk 0:02:49.3]} 10... Qxe7 {[%clk 0:02:40.2]} 11. Nd2 {[%clk
0:02:46.3]} 11... Bxc4 {[%clk 0:02:36.9]} 12. Nxc4 {[%clk 0:02:46.7]} 12... Ne6
{[%clk 0:02:38.2]} 13. Ne3 {[%clk 0:02:47.6]} 13... g6 {[%clk 0:02:27]} 14. Nd5
{[%clk 0:02:32.8]} 14... Nxd5 {[%clk 0:02:25.6]} 15. exd5 {[%clk 0:02:34.7]}
15... Ng7 {[%clk 0:02:24.6]} 16. c3 {[%clk 0:02:10.5]} 16... Qd7 {[%clk
0:02:19.2]} 17. d4 {[%clk 0:02:03.6]} 17... f6 {[%clk 0:02:15.5]} 18. a5 {[%clk
0:02:02.2]} 18... a6 {[%clk 0:02:05.8]} 19. dxe5 {[%clk 0:01:49.3]} 19... fxe5
{[%clk 0:02:05.9]} 20. Ra4 {[%clk 0:01:50.8]} 20... Rf7 {[%clk 0:02:01.2]} 21.
Rb4 {[%clk 0:01:49.4]} 21... Raf8 {[%clk 0:01:45.7]} 22. f3 {[%clk 0:01:34.8]}
22... Qc8 {[%clk 0:01:33.1]} 23. Qb3 {[%clk 0:01:28.7]} 23... c6 {[%clk
0:01:27.5]} 24. Bh6 {[%clk 0:01:18.6]} 24... Re8 {[%clk 0:01:17]} 25. Bxg7
{[%clk 0:01:14.5]} 25... Kxg7 {[%clk 0:01:16.8]} 26. Rb6 {[%clk 0:01:13.5]}
26... Ree7 {[%clk 0:00:54.5]} 27. dxc6 {[%clk 0:01:08.7]} 27... bxc6 {[%clk
0:00:55]} 28. Qc4 {[%clk 0:01:09.6]} 28... e4 {[%clk 0:00:40.2]} 29. Rxe4 {[%clk
0:00:52.8]} 29... Rxe4 {[%clk 0:00:35.3]} 30. Qxe4 {[%clk 0:00:52.4]} 30... d5
{[%clk 0:00:34.8]} 31. Qe5+ {[%clk 0:00:50.7]} 31... Kh6 {[%clk 0:00:35.7]} 32.
Rb8 {[%clk 0:00:45.9]} 32... Qd7 {[%clk 0:00:32.9]} 33. Re8 {[%clk 0:00:39.2]}
33... Qa7+ {[%clk 0:00:32.6]} 34. Kf1 {[%clk 0:00:34.9]} 34... Qb7 {[%clk
0:00:27.7]} 35. b4 {[%clk 0:00:34.1]} 35... Qb5+ {[%clk 0:00:27.6]} 36. Kf2
{[%clk 0:00:35.7]} 36... Qd3 {[%clk 0:00:25]} 37. Qe3+ {[%clk 0:00:35.2]} 37...
Qxe3+ {[%clk 0:00:25.7]} 38. Kxe3 {[%clk 0:00:37.1]} 1-0

[Event "*** Titled Tuesday 3|2 Blitz"]
[Site "Chess.com"]
[Date "2015.11.03"]
[Round "4"]
[White "motivated_bishop"]
[Black "AndrewMcStone"]
[Result "1-0"]
[WhiteElo "2163"]
[BlackElo "1996"]
[TimeControl "180+2"]
[EndTime "11:48:25 PST"]
[Termination "motivated_bishop won by resignation"]

1. d4 {[%clk 0:03:01.9]} 1... e6 {[%clk 0:03:00.3]} 2. c4 {[%clk 0:03:02]} 2...
f5 {[%clk 0:03:01.4]} 3. g3 {[%clk 0:03:02.5]} 3... Nf6 {[%clk 0:03:02.2]} 4.
Bg2 {[%clk 0:03:03.7]} 4... Be7 {[%clk 0:03:01.1]} 5. Nf3 {[%clk 0:03:04.8]}
5... d6 {[%clk 0:03:02.4]} 6. O-O {[%clk 0:03:05.7]} 6... O-O {[%clk 0:03:03.9]}
7. b3 {[%clk 0:03:04]} 7... Qe8 {[%clk 0:02:48.7]} 8. Nc3 {[%clk 0:03:03.7]}
8... Ne4 {[%clk 0:02:48.6]} 9. Bb2 {[%clk 0:03:03.6]} 9... Bf6 {[%clk
0:02:35.1]} 10. Qc2 {[%clk 0:02:31.5]} 10... Nxc3 {[%clk 0:02:27.8]} 11. Bxc3
{[%clk 0:02:33.4]} 11... e5 {[%clk 0:02:23.8]} 12. e4 {[%clk 0:02:29.4]} 12...
Nc6 {[%clk 0:02:08.5]} 13. dxe5 {[%clk 0:02:15.4]} 13... dxe5 {[%clk 0:02:00.2]}
14. Rfe1 {[%clk 0:02:05.5]} 14... f4 {[%clk 0:01:51.9]} 15. gxf4 {[%clk
0:02:00.9]} 15... exf4 {[%clk 0:01:15.9]} 16. e5 {[%clk 0:01:59.6]} 16... Be7
{[%clk 0:01:12.1]} 17. e6 {[%clk 0:01:54.8]} 17... Qh5 {[%clk 0:01:03.7]} 18.
Rad1 {[%clk 0:01:33.6]} 18... Nd8 {[%clk 0:00:52.6]} 19. Rd7 {[%clk 0:00:18.9]}
19... Bxd7 {[%clk 0:00:45.9]} 20. exd7 {[%clk 0:00:20.8]} 20... Nc6 {[%clk
0:00:40.7]} 21. Ne5 {[%clk 0:00:19.2]} 21... f3 {[%clk 0:00:33.1]} 22. Nxc6
{[%clk 0:00:19]} 22... bxc6 {[%clk 0:00:33.8]} 23. Rxe7 {[%clk 0:00:19]} 23...
Rf7 {[%clk 0:00:20.8]} 24. Re8+ {[%clk 0:00:20.3]} 24... Rf8 {[%clk 0:00:20.2]}
25. Re7 {[%clk 0:00:20.6]} 25... Rf7 {[%clk 0:00:21.3]} 26. Re8+ {[%clk
0:00:19.5]} 26... Rf8 {[%clk 0:00:22.4]} 27. Rxa8 {[%clk 0:00:20.3]} 27... Rxa8
{[%clk 0:00:22.6]} 28. Qd1 {[%clk 0:00:17.7]} 28... Rd8 {[%clk 0:00:12.9]} 29.
Bxf3 {[%clk 0:00:18.4]} 29... Qg6+ {[%clk 0:00:08.9]} 30. Kf1 {[%clk 0:00:19.5]}
30... Qf7 {[%clk 0:00:07.3]} 31. Bxc6 {[%clk 0:00:19.8]} 31... Kh8 {[%clk
0:00:07.3]} 32. Qd5 {[%clk 0:00:19.6]} 32... Qf4 {[%clk 0:00:06.8]} 33. Qe5
{[%clk 0:00:19]} 33... Qc1+ {[%clk 0:00:07.5]} 34. Kg2 {[%clk 0:00:20.2]} 34...
Rg8 {[%clk 0:00:07.3]} 35. Qxg7+ {[%clk 0:00:20.5]} 1-0